{"text_format":"1","workbook":"xlsx","n_sheets":5,"sheets":["Allgemeines","A-Vermögenswerte","Zusammenzug","B-Einkünfte_Zusatzinformationen","Tabelle1"],"not_rendered":{"charts":0,"images":2,"macros":1,"external_links":0,"defined_names":20,"comments":2,"pivot_tables":0},"unopened":[],"bounds":{"document_bytes":16777216,"sheet_cells":100000,"rows_first":2000,"rows_last":500,"rows_between":2000,"halvings":0,"cell_chars":16384,"cell_head_chars":4096},"cells_cut":0,"cells_raw":0,"read":"whole","date_system":"1900"}

{"sheet":"Allgemeines","index":0,"n_rows":32,"n_cols":13,"rows_kept":32,"cut":false,"hidden":false,"merged":[[32,0,33,8],[0,1,0,8],[31,1,31,8],[11,1,11,3],[13,1,13,3],[15,1,15,3],[19,1,19,3],[2,1,2,7],[3,1,3,7],[4,1,4,3],[6,1,6,3]]}
[null,"Inventar der zu verwaltenden Vermögenswerte (IvV)\ngemäss Art. 405 Abs. 2 ZGB"]
[]
[null,"Name Vorname, geb. Geburtsdatum"]
[null,"von Heimatort"]
[null,"Gesetzlicher Wohnsitz:"]
[]
[null,"Aufenthaltsadresse:"]
[]
[]
[]
[]
[null,"Massnahme:",null,null,"ZGB-Artikel gemäss Entscheid"]
[]
[null,"Entscheid vom:",null,null,"Errichtungsdatum"]
[]
[null,"Inventarstichtag:",null,null,"gemäss Datum im Entscheid"]
[]
[]
[]
[null,"Wählen Sie ein Element aus.",null,null,"Name Vorname Mandatsperson",null,null,null,null,null,null,null,"z"]
[]
[]
[]
[]
[]
[]
[]
[]
[]
[]
[]
[null,"Das Inventar über die zu verwaltenden Vermögenswerte bildet die Grundlage für die Rechnungsführung und Vermögensverwaltung durch die Mandatsperson. Das Inventar enthält die zu verwaltenden Aktiven, Passiven und regelmässigen Einkünfte. Bitte legen Sie dem Inventar einen aktuellen Betreibungsregisterauszug sowie die aktuellste Steuererklärung inkl. Guthaben- und Wertschriftenverzeichnis bei."]

{"sheet":"A-Vermögenswerte","index":1,"n_rows":156,"n_cols":12,"rows_kept":156,"cut":false,"hidden":false,"merged":[[9,1,9,5],[9,6,9,8],[8,1,8,5],[8,6,8,8],[75,1,75,8],[83,1,83,4],[83,5,83,8],[94,1,94,4],[121,1,121,5],[121,6,121,8],[34,6,34,8],[42,1,42,5],[42,6,42,8],[25,1,25,5],[25,6,25,8],[33,1,33,5],[33,6,33,8],[41,1,41,8],[43,6,43,8],[40,1,40,8],[32,1,32,5],[32,6,32,8],[54,1,54,9],[50,1,50,5],[103,1,103,5],[103,6,103,8],[102,1,102,4],[102,5,102,8],[17,1,17,5],[120,1,120,5],[120,6,120,8],[68,6,68,8],[57,1,57,8],[60,1,60,5],[60,6,60,8],[113,1,113,5],[113,6,113,8],[112,1,112,5],[112,6,112,8],[76,1,76,5],[76,6,76,8],[84,1,84,5],[84,6,84,8],[65,1,65,8],[17,6,17,8],[18,1,18,5],[18,6,18,8],[101,1,101,4],[143,1,143,5],[143,6,143,8],[142,1,142,4],[142,6,142,8],[128,1,128,5],[128,6,128,8],[127,1,127,4],[127,5,127,6],[127,7,127,8],[137,1,137,5],[137,6,137,8],[101,5,101,8],[7,1,7,5],[7,6,7,8],[11,1,11,5],[11,6,11,8],[16,1,16,5],[16,6,16,8],[51,1,51,5],[51,6,51,8],[48,1,48,8],[19,1,19,5],[19,6,19,8],[24,1,24,5],[24,6,24,8],[27,1,27,5],[27,6,27,8],[43,1,43,5],[95,1,95,5],[67,6,67,8],[35,1,35,5],[85,6,85,8],[82,1,82,4],[82,5,82,8],[50,6,50,8],[96,1,96,5],[96,6,96,8],[93,1,93,4],[93,5,93,8],[86,1,86,4],[86,5,86,9],[94,5,94,8],[67,1,67,5],[68,1,68,5],[95,6,95,8],[59,1,59,5],[59,6,59,8],[155,1,155,5],[155,6,155,8],[152,1,152,4],[152,5,152,8],[144,1,144,5],[144,6,144,8],[126,1,126,4],[126,5,126,6],[126,7,126,8],[138,1,138,5],[138,6,138,8],[141,6,141,8],[129,1,129,5],[129,6,129,8],[135,1,135,5],[135,6,135,8],[154,1,154,5],[154,6,154,8],[153,1,153,4],[153,5,153,8],[136,1,136,5],[136,6,136,8],[10,1,10,5],[10,6,10,8],[141,1,141,4],[122,1,122,5],[122,6,122,8],[26,1,26,5],[26,6,26,8],[34,1,34,5],[114,1,114,5],[114,6,114,8],[119,1,119,5],[119,6,119,8],[74,1,74,8],[77,1,77,5],[77,6,77,8],[111,1,111,5],[111,6,111,8],[85,1,85,5],[104,1,104,5],[104,6,104,8],[35,6,35,8],[49,1,49,8],[58,1,58,8],[66,1,66,8]]}
["A."," Vermögenswerte (alle entsprechenden Belege einreichen)"]
[]
["I.","Aktiven"]
["1.","Bankguthaben und Wertschriften"]
[null,"a.","Bankguthaben"]
[null,null,"Keine",null,null,null,null,null,null,null,null,"k"]
[null,null,null,null,null,null,null,null,null,null,null,"a"]
[null,"Kontobezeichnung/Bank",null,null,null,null,"IBAN/Konto-Nummer",null,null,"Saldo"]
[null,null,null,null,null,null,null,null,null,null,null,"z"]
[null,null,null,null,null,null,null,null,null,null,null,"z"]
[]
[null,null,null,null,null,null,"Total",null,null,{"$f":"IF(SUM(J9:J11)<>0,SUM(J9:J11),IF(ISERROR(MATCH(\"*p.m.*\",J9:J11,0)),0,\"p.m.\"))","v":0},null,"e"]
[null,null,null,null,null,null,null,null,null,null,null,"a"]
[null,"b.","Wertschriften im Depot"]
[null,null,"Keine",null,null,null,null,null,null,null,null,"k"]
[null,null,null,null,null,null,null,null,null,null,null,"a"]
[null,"Depotbezeichnung/Bank",null,null,null,null,"Depot-Nr.",null,null,"Saldo"]
[null,null,null,null,null,null,null,null,null,null,null,"z"]
[]
[null,null,null,null,null,null,"Total",null,null,{"$f":"IF(SUM(J18:J19)<>0,SUM(J18:J19),IF(ISERROR(MATCH(\"*p.m.*\",J18:J19,0)),0,\"p.m.\"))","v":0},null,"e"]
[null,null,null,null,null,null,null,null,null,null,null,"a"]
[null,"c.","Freizügigkeitskonten, Sparen 3, Lebensversicherung nach 3a (gebundene Vorsorge)"]
[null,null,"Keine",null,null,null,null,null,null,null,null,"k"]
[null,null,null,null,null,null,null,null,null,null,null,"a"]
[null,"Bank/Versicherung",null,null,null,null,"Konto-/Policen-Nummer",null,null,"Wert Guthaben oder p.m."]
[null,null,null,null,null,null,null,null,null,null,null,"z"]
[]
[null,null,null,null,null,null,"Total",null,null,{"$f":"IF(SUM(J26:J27)<>0,SUM(J26:J27),IF(ISERROR(MATCH(\"*p.m.*\",J26:J27,0)),0,\"p.m.\"))","v":0},null,"e"]
[null,null,null,null,null,null,null,null,null,null,null,"a"]
[null,"d.","Weitere Wertschriften und Anteilscheine"]
[null,null,"Keine",null,null,null,null,null,null,null,null,"k"]
[null,null,null,null,null,null,null,null,null,null,null,"a"]
[null,"Bezeichnung/Valor",null,null,null,null,"Valuta",null,null,"Betrag"]
[null,null,null,null,null,null,null,null,null,null,null,"z"]
[]
[null,null,null,null,null,null,"Total",null,null,{"$f":"IF(SUM(J34:J35)<>0,SUM(J34:J35),IF(ISERROR(MATCH(\"*p.m.*\",J34:J35,0)),0,\"p.m.\"))","v":0},null,"e"]
[null,null,null,null,null,null,null,null,null,null,null,"a"]
[null,"e.","Mieterkaution/Heimdepot"]
[null,null,"Keine",null,null,null,null,null,null,null,null,"k"]
[null,null,null,null,null,null,null,null,null,null,null,"a"]
[null,"Wohnung/Heim",null,null,null,null,null,null,null,"Betrag"]
[null,null,null,null,null,null,null,null,null,null,null,"z"]
[]
[null,null,null,null,null,null,"Total",null,null,{"$f":"IF(SUM(J42:J43)<>0,SUM(J42:J43),IF(ISERROR(MATCH(\"*p.m.*\",J42:J43,0)),0,\"p.m.\"))","v":0},null,"e"]
[null,null,null,null,null,null,null,null,null,null,null,"a"]
["2.","Liegenschaften (Grundeigentum/Baurecht)"]
[null,null,"Keine",null,null,null,null,null,null,null,null,"k"]
[null,null,null,null,null,null,null,null,null,null,null,"a"]
[null,"Bezeichnung und Kataster-Nr.",null,null,null,null,null,null,null,"Auswahl"]
[null,null,null,null,null,null,null,null,null,null,null,"z"]
[]
[null,null,null,null,null,null,"Total",null,null,{"$f":"IF(SUM(J50:J51)<>0,SUM(J50:J51),IF(ISERROR(MATCH(\"*p.m.*\",J50:J51,0)),0,\"p.m.\"))","v":0},null,"e"]
[null,null,null,null,null,null,null,null,null,null,null,"a"]
["3.","Weitere Guthaben"]
[null,"(ausstehende Nachlassansprüche, Darlehen, fällige Forderungen, Lohnguthaben, \nausstehende Versicherungsleistungen, Genugtuungsansprüche etc.)"]
[null,null,"Keine",null,null,null,null,null,null,null,null,"k"]
[null,null,null,null,null,null,null,null,null,null,null,"a"]
[null,"Bezeichnung",null,null,null,null,null,null,null,"Betrag"]
[null,null,null,null,null,null,null,null,null,null,null,"z"]
[]
[null,null,null,null,null,null,"Total",null,null,{"$f":"IF(SUM(J59:J60)<>0,SUM(J59:J60),IF(ISERROR(MATCH(\"*p.m.*\",J59:J60,0)),0,\"p.m.\"))","v":0},null,"e"]
[null,null,null,null,null,null,null,null,null,null,null,"a"]
["4.","Barschaft"]
[null,null,"Keine",null,null,null,null,null,null,null,null,"k"]
[null,null,null,null,null,null,null,null,null,null,null,"a"]
[null,"Der Mandatsperson zur Verwaltung übergebenes Bargeld",null,null,null,null,null,null,null,"Betrag"]
[null,null,null,null,null,null,null,null,null,null,null,"z"]
[]
[null,null,null,null,null,null,"Total",null,null,{"$f":"IF(SUM(J67:J68)<>0,SUM(J67:J68),IF(ISERROR(MATCH(\"*p.m.*\",J67:J68,0)),0,\"p.m.\"))","v":0},null,"e"]
[null,null,null,null,null,null,null,null,null,null,null,"a"]
["5.","Zu verwaltende Fahrhabe"]
[null,null,"Es ist keine Fahrhabe von besonderem Wert vorhanden",null,null,null,null,null,null,null,null,"k"]
[null,null,"Es bestehen folgende Gegenstände von besonderem Wert",null,null,null,null,null,null,null,null,"a"]
[]
[null,"zu verwaltende Wertgegenstände (Möbel, Schmuck/Münzen, Fahrzeuge, Kunst, etc.)",null,null,null,null,null,null,null,"Schätzwert oder p.m."]
[null,null,null,null,null,null,null,null,null,null,null,"z"]
[]
[null,null,null,null,null,null,"Total",null,null,{"$f":"IF(SUM(J76:J77)<>0,SUM(J76:J77),IF(ISERROR(MATCH(\"*p.m.*\",J76:J77,0)),0,\"p.m.\"))","v":0},null,"e"]
[null,null,null,null,null,null,null,null,null,null,null,"a"]
["6.","Schrankfächer"]
[null,null,"Keine",null,null,null,null,null,null,null,null,"k"]
[null,null,null,null,null,null,null,null,null,null,null,"a"]
[null,"Bank/Schrankfach-Nr.",null,null,null,"Gegenstand/Inhalt",null,null,null,"Betrag"]
[null,null,null,null,null,null,null,null,null,null,null,"z"]
[]
[null,null,null,null,null,null,"Total",null,null,{"$f":"IF(SUM(J84:J85)<>0,SUM(J84:J85),IF(ISERROR(MATCH(\"*p.m.*\",J84:J85,0)),0,\"p.m.\"))","v":0}]
[null,"Aufbewahrungsort Schlüssel:",null,null,null,null,null,null,null,null,null,"e"]
[null,null,null,null,null,null,null,null,null,null,null,"a"]
["7.","Geschäftsvermögen"]
[null,null,"Keine",null,null,null,null,null,null,null,null,"k"]
[null,null,"Geschäftsvermögen wird nicht durch Mandatsperson verwaltet.",null,null,null,null,null,null,null,null,"a"]
[null,null,"Geschäftsvermögen wird durch Mandatsperson verwaltet."]
[]
[null,"Firma",null,null,null,"Rechtsform",null,null,null,"Wert der Beteiligung"]
[null,null,null,null,null,null,null,null,null,null,null,"z"]
[]
[null,null,null,null,null,null,"Total",null,null,{"$f":"IF(SUM(J95:J96)<>0,SUM(J95:J96),IF(ISERROR(MATCH(\"*p.m.*\",J95:J96,0)),0,\"p.m.\"))","v":0},null,"e"]
[null,null,null,null,null,null,null,null,null,null,null,"a"]
["8.","Versicherungen mit Rückkaufswert nach 3b"]
[null,null,"Keine",null,null,null,null,null,null,null,null,"k"]
[null,null,null,null,null,null,null,null,null,null,null,"a"]
[null,"Versicherungsgesellschaft/Agentur",null,null,null,"Policen-Nummer",null,null,null,"Rückkaufswert"]
[null,null,null,null,null,null,null,null,null,null,null,"z"]
[]
[null,null,null,null,null,null,"Total",null,null,{"$f":"IF(SUM(J103:J104)<>0,SUM(J103:J104),IF(ISERROR(MATCH(\"*p.m.*\",J103:J104,0)),0,\"p.m.\"))","v":0},null,"e"]
[null,null,null,null,null,null,null,null,null,null,null,"a"]
["II.","Passiven"]
[]
["1.","Hypotheken"]
[null,null,"Keine",null,null,null,null,null,null,null,null,"k"]
[null,null,null,null,null,null,null,null,null,null,null,"a"]
[null,"Bank",null,null,null,null,"Laufzeit",null,null,"Höhe der Hypothek"]
[null,null,null,null,null,null,null,null,null,null,null,"z"]
[]
[null,null,null,null,null,null,"Total",null,null,{"$f":"IF(SUM(J113:J114)<>0,SUM(J113:J114),IF(ISERROR(MATCH(\"*p.m.*\",J113:J114,0)),0,\"p.m.\"))","v":0},null,"e"]
[null,null,null,null,null,null,null,null,null,null,null,"a"]
["2.","Kredite/Darlehen"]
[null,null,"Keine",null,null,null,null,null,null,null,null,"k"]
[null,null,null,null,null,null,null,null,null,null,null,"a"]
[null,"Bank/Kreditinstitut/Darlehensgeber",null,null,null,null,"Laufzeit",null,null,"Höhe Kredit/Darlehen"]
[null,null,null,null,null,null,null,null,null,null,null,"z"]
[]
[null,null,null,null,null,null,"Total",null,null,{"$f":"IF(SUM(J121:J122)<>0,SUM(J121:J122),IF(ISERROR(MATCH(\"*p.m.*\",J121:J122,0)),0,\"p.m.\"))","v":0},null,"e"]
["3.","Geschuldete Unterhaltsbeiträge"]
[null,null,"Keine",null,null,null,null,null,null,null,null,"k"]
[null,null,null,null,null,null,null,null,null,null,null,"a"]
[null,"Name, Vorname Empfänger/in",null,null,null,"monatliche Summe",null,"befristet bis",null,"Ausstände"]
[null,null,null,null,null,null,null,null,null,null,null,"z"]
[]
[null,null,null,null,null,null,"Total",null,null,{"$f":"IF(SUM(J128:J129)<>0,SUM(J128:J129),IF(ISERROR(MATCH(\"*p.m.*\",J128:J129,0)),0,\"p.m.\"))","v":0},null,"e"]
[null,null,null,null,null,null,null,null,null,null,null,"a"]
["4.","Schulden"]
[null,null,"Keine",null,null,null,null,null,null,null,null,"k"]
[null,"a.","offene Betreibungen",null,null,null,null,null,null,null,null,"a"]
[]
[null,"Name Betreibungsamt",null,null,null,null,"Datum Auszug aus\nBetreibungsregister ",null,null,"Schuld total"]
[null,null,null,null,null,null,null,null,null,null,null,"z"]
[]
[null,null,null,null,null,null," Total ",null,null,{"$f":"IF(SUM(J137:J138)<>0,SUM(J137:J138),IF(ISERROR(MATCH(\"*p.m.*\",J137:J138,0)),0,\"p.m.\"))","v":0}]
[null,"b.","Verlustscheine"]
[]
[null,"Name Betreibungsamt",null,null,null,"Anzahl Ver-\nlustscheine","Datum Auszug aus\nBetreibungsregister ",null,null,"Erinnerungswert p.m."]
[null,null,null,null,null,null,null,null,null,null,null,"z"]
[]
[null,null,null,null,null,null,"Total",null,null,{"$f":"IF(SUM(J143:J144)<>0,SUM(J143:J144),IF(ISERROR(MATCH(\"*p.m.*\",J143:J144,0)),0,\"p.m.\"))","v":0},null,"e"]
[null,null,null,null,null,null,null,null,null,null,null,"a"]
["5.","Diverses/Spezielles"]
[null,null,"z.B. Leasing, Kreditkarte,offene Rechnungen (wenn sie mehr als 20% der liquiden Mittel"]
[null,null,"ausmachen) etc."]
[]
[null,null,"Keine",null,null,null,null,null,null,null,null,"k"]
[null,null,null,null,null,null,null,null,null,null,null,"a"]
[null,"Art",null,null,null,"Gläubiger",null,null,null,"Betrag"]
[null,null,null,null,null,null,null,null,null,null,null,"z"]
[]
[null,null,null,null,null,null,"Total",null,null,{"$f":"IF(SUM(J154:J155)<>0,SUM(J154:J155),IF(ISERROR(MATCH(\"*p.m.*\",J154:J155,0)),0,\"p.m.\"))","v":0},null,"e"]

{"sheet":"Zusammenzug","index":2,"n_rows":44,"n_cols":3,"rows_kept":44,"cut":false,"hidden":false,"merged":[[43,1,51,2],[0,0,0,1]]}
["Zusammenzug Vermögenswerte"]
[]
[]
[null," I.     Aktiven"]
[null,"1.    Bankguthaben und Wertschriften"]
[null,"a.    Bankguthaben",{"$f":"'A-Vermögenswerte'!J12","v":0}]
[null,"b.    Wertschriften in Depot",{"$f":"'A-Vermögenswerte'!J20","v":0}]
[null,"c.    Freizügigkeitskonten und Sparen 3",{"$f":"'A-Vermögenswerte'!J28","v":0}]
[null,"d.    Weitere Wertschriften und Anteilscheine",{"$f":"'A-Vermögenswerte'!J36","v":0}]
[null,"e.    Mieterkaution/Heimdepot",{"$f":"'A-Vermögenswerte'!J44","v":0}]
[null,"2.    Liegenschaften",{"$f":"'A-Vermögenswerte'!J52","v":0}]
[null,"3.    Weitere Guthaben",{"$f":"'A-Vermögenswerte'!J61","v":0}]
[null,"4.    Barschaft",{"$f":"'A-Vermögenswerte'!J69","v":0}]
[null,"5.    Zu verwaltende Fahrhabe",{"$f":"'A-Vermögenswerte'!J78","v":0}]
[null,"6.    Schrankfächer",{"$f":"'A-Vermögenswerte'!J86","v":0}]
[null,"7.    Geschäftsvermögen",{"$f":"'A-Vermögenswerte'!J97","v":0}]
[null,"8.    Versicherungen mit Rückkaufswert",{"$f":"'A-Vermögenswerte'!J121","v":0}]
[null,"     Total Aktiven",{"$f":"SUM(C6:C17)","v":0}]
[]
[null,"II.     Passiven"]
[null,"1.    Hypotheken",{"$f":"'A-Vermögenswerte'!J115","v":0}]
[null,"2.    Kredite/Darlehen",{"$f":"'A-Vermögenswerte'!J123","v":0}]
[null,"3.    Geschuldete Unterhaltsbeiträge",{"$f":"'A-Vermögenswerte'!J130","v":0}]
[null,"4.    Schulden"]
[null,"a.    offene Betreibungen",{"$f":"'A-Vermögenswerte'!J139","v":0}]
[null,"b.    Verlustscheine",{"$f":"'A-Vermögenswerte'!J145","v":0}]
[null,"5.    Diverses/Spezielles",{"$f":"'A-Vermögenswerte'!J156","v":0}]
[null,"Total Passiven",{"$f":"SUM(C21:C27)","v":0}]
[null,"Gesamttotal",{"$f":"SUM(C18)-SUM(C21:C27)","v":0}]
[]
[]
[]
[]
[]
["Unterschriften"]
[]
[null,"Ort und Datum"]
[]
[null,"Mandatsperson:","Klientin/Klient:"]
[]
[]
[null,"Begründung/Bemerkungen:"]
[]
[null,"(falls von Klientin/Klient nicht unterzeichnet)"]

{"sheet":"B-Einkünfte_Zusatzinformationen","index":3,"n_rows":54,"n_cols":10,"rows_kept":54,"cut":false,"hidden":false,"merged":[[12,6,12,7],[19,5,19,7],[26,1,26,4],[27,1,27,4],[25,1,25,4],[25,5,25,6],[26,5,26,6],[27,5,27,6],[53,1,53,5],[54,1,54,5],[53,6,53,7],[54,6,54,7],[13,6,13,7],[49,4,49,9],[37,1,37,7],[38,1,38,7],[39,1,39,7],[50,7,50,11]]}
["B.","Einkünfte und Zusatzinformationen (keine Belege nötig)"]
[]
["1.","Einnahmen",null,null,null,null,null,null,null,"t"]
[null,null,"Keine "]
[null,null,"Lohn",null,null,"Zusatzleistungen AHV/IV",null,null,null,"k"]
[null,null,"AHV-Rente",null,null,"Hilflosenentschädigung"]
[null,null,"IV-Rente",null,null,"Rente Pensionskasse"]
[null,null,"Wirtschaftliche Sozialhilfe",null,null,"Private Rentenversicherung"]
[]
["2.","Übrige Einkünfte"]
[null,null,"Keine",null,null,null,null,null,null,"k"]
[null,null,"Unterhaltsbeiträge",null,null,null,null,null,null,"a"]
[null,null,"Mieterträge",null,null,null,null,null,null,"z"]
[null,null,"Andere",null,null,null,null,null,null,"z"]
[]
["3.","Versicherungen",null,null,null,null,null,null,null,"t"]
[null,null,null,null,null,null,null,null,null,"e"]
[null,null,"Haftpflicht",null,null,"Nichterwerbstätigen-Beiträge",null,null,null,"k"]
[null,null,"Hausrat",null,null,"Gebäudehaftpflicht"]
[null,null,"Krankenversicherung KVG",null,null,"Unfallversicherung (falls separat)"]
[null,null,"Zusatzversicherung VVG",null,null,"Andere"]
[]
["4.","Nutzniessungsansprüche",null,null,null,null,null,null,null,"t"]
[null,null,"Keine",null,null,null,null,null,null,"k"]
[null,null,null,null,null,null,null,null,null,"a"]
[null,"Eigentümer",null,null,null,"Beschreibung ",null,"Betrag"]
[null,null,null,null,null,null,null,null,null,"z"]
[null,null,null,null,null,null,null,null,null,"z"]
[]
["5.","Zivilstand / Güterrechtliche Verhältnisse",null,null,null,null,null,null,null,"t"]
[null,null,"Verheiratet",null,null,"Ledig"]
[null,null,"Errungenschaftsbeteiligung",null,null,"Geschieden"]
[null,null,"Gütergemeinschaft",null,null,"Verwitwet"]
[null,null,"Gütertrennung"]
[]
[null,"a. Eigengüter"]
[]
[null,"Herkunft (eingebracht/Erblasser/Schenker)",null,null,null,null,null,null,"Betrag in  CHF"]
[]
[]
[]
[null,"b. Ehevertrag / Partnerschaftsvertrag"]
[]
[null,null,"Keine"]
[null,null,"Vorhanden"]
[]
["6.","Nachlass"]
[]
[null,null,"Keine"]
[null,null,"Testament ",null,"Aufbewahrungsort:"]
[]
[null,null,"Ausgerichtete Erbvorbezüge/Schenkungen"]
[]
[null,"Empfänger",null,null,null,null,"Betrag"]

{"sheet":"Tabelle1","index":4,"n_rows":11,"n_cols":4,"rows_kept":11,"cut":false,"hidden":true,"merged":[]}
[null,null,null,"Wählen Sie ein Element aus."]
[null,"",null,"Berufliche Mandatsperson"]
[null,"",null,"Private Mandatsperson"]
[null,""]
[null,""]
[]
[]
[null,"Auswahl"]
[null,"Steuerwert"]
[null,"Verkehrswert"]
[null,"Hypothekarwert"]